[Event "Cellavision Cup 2019"]
[Site "Lund"]
[Date "2019.08.03"]
[Round "5.7"]
[White "Akesson, Ralf"]
[Black "Cramling, Pia"]
[Result "1-0"]
[ECO "E46"]
[WhiteElo "2365"]
[BlackElo "2479"]
[Annotator "ChessBase"]
[PlyCount "81"]
[EventDate "2019.08.02"]
[EventType "swiss"]
[EventCountry "SWE"]
[SourceTitle "playchess.com"]
[Source "ChessBase"]
[SourceQuality "1"]
[TimeControl "5400+30"]

1. d4 {[%emt 0:02:31]} Nf6 {[%emt 0:04:11]} 2. c4 {[%emt 0:00:18]} e6 {[%emt 0:00:06]} 3. Nc3 {[%emt 0:00:43]} Bb4 {[%emt 0:00:09]} 4. e3 {[%emt 0:00:21]} O-O {[%emt 0:00:06]} 5. Nge2 {[%emt 0:01:41]} d5 {[%emt 0:02:07]} 6. a3 {[%emt 0:00:28]} Be7 {[%emt 0:00:07]} 7. cxd5 {[%emt 0:01:31]} exd5 {[%emt 0:00:05]} 8. Ng3 {[%emt 0:05:27]} Re8 {[%emt 0:03:12]} 9. Bd3 {[%emt 0:08:37]} a5 {[%emt 0:11:34]} 10. O-O {[%emt 0:01:55]} Bf8 {[%emt 0:02:31]} 11. Bd2 {[%emt 0:05:14]} Na6 {[%emt 0:01:15]} 12. Nce2 {[%emt 0:04:52]} c5 {[%emt 0:05:13]} 13. Bb5 {[%emt 0:11:34]} Re7 {[%emt 0:14:25]} 14. Bxa6 {[%emt 0:03:50]} Rxa6 {[%emt 0:00:06]} 15. dxc5 {[%emt 0:00:10]} Ne4 {[%emt 0:11:18]} 16. Rc1 {[%emt 0:08:27]} Rh6 {[%emt 0:03:30]} 17. f3 {[%emt 0:13:39]} Nxg3 {[%emt 0:11:26]} 18. Nxg3 {[%emt 0:02:01]} Re8 {[%emt 0:04:28]} 19. Rf2 {[%emt 0:02:46]} b6 {[%emt 0:04:13]} 20. cxb6 {[%emt 0:03:11]} Qxb6 {[%emt 0:00:11]} 21. Bc3 {[%emt 0:01:02]} Qd8 {[%emt 0:03:57]} 22. Qa4 {[%emt 0:03:18]} Bd6 {[%emt 0:07:04]} 23. Bxa5 {[%emt 0:04:16]} Qe7 {[%emt 0:00:16]} 24. Bd2 {[%emt 0:05:59]} Bd7 {[%emt 0:02:09]} 25. Qd4 {[%emt 0:03:50]} Be5 {[%emt 0:03:00]} 26. Qb4 {[%emt 0:00:31]} Bd6 {[%emt 0:00:27]} 27. Qd4 {[%emt 0:00:55]} Be5 {[%emt 0:00:08]} 28. Qxd5 {[%emt 0:03:02]} Rd6 {[%emt 0:02:16]} 29. Qa5 {[%emt 0:00:58]} Rh6 {[%emt 0:03:03]} 30. Qb4 {[%emt 0:00:50]} Bd6 {[%emt 0:00:08]} 31. Qc4 {[%emt 0:00:29]} Rh4 {[%emt 0:00:40]} 32. f4 {[%emt 0:00:10]} g5 {[%emt 0:00:56]} 33. Qd4 {[%emt 0:00:22]} f6 {[%emt 0:00:54]} 34. Nf1 {[%emt 0:00:54]} Be5 {[%emt 0:00:40]} 35. Qd3 {[%emt 0:00:29]} Bd6 {[%emt 0:00:34]} 36. b4 {[%emt 0:00:28]} Be6 {[%emt 0:01:00]} 37. Rc6 {[%emt 0:00:51]} Rd8 {[%emt 0:00:10]} 38. Qe4 {[%emt 0:00:37]} Qf7 {[%emt 0:00:33]} 39. Qc2 {[%emt 0:00:23]} Qd7 {[%emt 0:00:46]} 40. Rc3 {[%emt 0:00:39]} Qa7 {[%emt 0:00:29]} 41. Rc6 {[%emt 0:00:33]} 1-0

[Event "Cellavision Cup 2019"]
[Site "Lund"]
[Date "2019.08.03"]
[Round "5.8"]
[White "Blomqvist, Erik"]
[Black "Ernst, Thomas"]
[Result "1-0"]
[ECO "C77"]
[WhiteElo "2492"]
[BlackElo "2335"]
[Annotator "ChessBase"]
[PlyCount "89"]
[EventDate "2019.08.02"]
[EventType "swiss"]
[EventCountry "SWE"]
[SourceTitle "playchess.com"]
[Source "ChessBase"]
[SourceQuality "1"]
[TimeControl "5400+30"]

1. e4 {[%emt 0:01:46]} e5 {[%emt 0:00:00]} 2. Nf3 {[%emt 0:00:06]} Nc6 {[%emt 0:00:00]} 3. Bb5 {[%emt 0:00:06]} a6 {[%emt 0:00:00]} 4. Ba4 {[%emt 0:00:04]} Nf6 {[%emt 0:00:00]} 5. d3 {[%emt 0:00:07]} d6 {[%emt 0:00:18]} 6. c3 {[%emt 0:00:16]} g6 {[%emt 0:00:28]} 7. h3 {[%emt 0:00:30]} Bg7 {[%emt 0:00:18]} 8. Be3 {[%emt 0:00:14]} O-O {[%emt 0:00:44]} 9. O-O {[%emt 0:00:12]} b5 {[%emt 0:09:07]} 10. Bc2 {[%emt 0:00:10]} d5 {[%emt 0:00:51]} 11. Nbd2 {[%emt 0:00:57]} Re8 {[%emt 0:02:07]} 12. a4 {[%emt 0:06:23]} Rb8 {[%emt 0:00:40]} 13. axb5 {[%emt 0:03:35]} axb5 {[%emt 0:00:08]} 14. Re1 {[%emt 0:01:24]} h6 {[%emt 0:05:08]} 15. Qc1 {[%emt 0:14:37]} Kh7 {[%emt 0:00:44]} 16. Nb3 {[%emt 0:03:47]} Bf8 {[%emt 0:01:55]} 17. Rd1 {[%emt 0:11:30]} Qe7 {[%emt 0:07:14]} 18. Bc5 {[%emt 0:04:00]} Qe6 {[%emt 0:00:13]} 19. Bxf8 {[%emt 0:04:20]} Rxf8 {[%emt 0:00:12]} 20. Nc5 {[%emt 0:02:00]} Qe7 {[%emt 0:08:31]} 21. b4 {[%emt 0:00:44]} Rd8 {[%emt 0:06:21]} 22. Bb3 {[%emt 0:03:02]} Kg7 {[%emt 0:02:10]} 23. Qc2 {[%emt 0:09:20]} dxe4 {[%emt 0:12:11]} 24. dxe4 {[%emt 0:00:08]} Rxd1+ {[%emt 0:00:17]} 25. Qxd1 {[%emt 0:07:03]} Qd6 {[%emt 0:02:01]} 26. Qe2 {[%emt 0:00:32]} Nd7 {[%emt 0:00:18]} 27. Rd1 {[%emt 0:04:29]} Qe7 {[%emt 0:00:08]} 28. Nxd7 Bxd7 {[%emt 0:00:18]} 29. Qa2 {[%emt 0:01:33]} Be8 {[%emt 0:02:24]} 30. Rd5 {[%emt 0:00:20]} f6 {[%emt 0:01:05]} 31. Ne1 {[%emt 0:04:20]} Bf7 {[%emt 0:03:39]} 32. Rd1 {[%emt 0:00:48]} Rd8 {[%emt 0:02:23]} 33. Rxd8 {[%emt 0:01:35]} Bxb3 {[%emt 0:00:19]} 34. Qxb3 {[%emt 0:00:25]} Qxd8 {[%emt 0:00:07]} 35. Qe6 {[%emt 0:02:40]} Ne7 {[%emt 0:02:05]} 36. Nd3 {[%emt 0:01:32]} Qd6 {[%emt 0:01:14]} 37. Nc5 {[%emt 0:00:07]} g5 {[%emt 0:00:30]} 38. Qxd6 {[%emt 0:02:18]} cxd6 {[%emt 0:00:04]} 39. Ne6+ {[%emt 0:00:05]} Kf7 {[%emt 0:00:24]} 40. Nc7 {[%emt 0:00:05]} f5 {[%emt 0:02:04]} 41. f3 {[%emt 0:00:37]} fxe4 {[%emt 0:00:07]} 42. fxe4 {[%emt 0:00:05]} Nc8 {[%emt 0:00:33]} 43. Nxb5 {[%emt 0:00:26]} Ke6 {[%emt 0:00:14]} 44. Nc7+ {[%emt 0:00:21]} Kd7 {[%emt 0:00:07]} 45. Nd5 {[%emt 0:00:07]} 1-0

[Event "Cellavision Cup 2019"]
[Site "Lund"]
[Date "2019.08.03"]
[Round "5.9"]
[White "Svensson, Mikael"]
[Black "Jepson, Christian"]
[Result "1/2-1/2"]
[ECO "A48"]
[WhiteElo "2147"]
[BlackElo "2391"]
[Annotator "NA"]
[PlyCount "103"]
[EventDate "2019.08.02"]
[EventType "swiss"]
[EventCountry "SWE"]
[SourceTitle "playchess.com"]
[Source "ChessBase"]
[SourceQuality "1"]
[TimeControl "5400+30"]

1. d4 {[%emt 0:00:00]} Nf6 {[%emt 0:00:00]} 2. Nf3 {[%emt 0:00:00]} g6 {[%emt 0:00:00]} 3. Nbd2 {[%emt 0:00:00]} c5 {[%emt 0:00:02]} 4. c3 {[%emt 0:05:06]} cxd4 {[%emt 0:02:28]} 5. cxd4 {[%emt 0:00:09]} d5 {[%emt 0:00:24]} 6. e3 {[%emt 0:02:20]} Bg7 {[%emt 0:00:06]} 7. Bd3 {[%emt 0:01:05]} O-O {[%emt 0:00:47]} 8. O-O {[%emt 0:00:04]} Nc6 {[%emt 0:00:10]} 9. a3 {[%emt 0:09:08]} Qd6 {[%emt 0:29:37]} 10. Nb3 {[%emt 0:05:53]} Ne4 {[%emt 0:03:34]} 11. Qc2 {[%emt 0:12:34]} f5 {[%emt 0:04:39]} 12. Bd2 {[%emt 0:01:36]} b6 {[%emt 0:10:51]} 13. Rac1 {[%emt 0:03:50]} Bd7 {[%emt 0:05:50]} 14. Ba6 {[%emt 0:02:39]} Rab8 {[%emt 0:01:53]} 15. Qd3 {[%emt 0:01:24]} Nxd2 {[%emt 0:03:26]} 16. Qxd2 {[%emt 0:03:10]} Nd8 {[%emt 0:07:07]} 17. Qb4 {[%emt 0:04:44]} Ne6 {[%emt 0:05:21]} 18. Qxd6 {[%emt 0:01:37]} exd6 {[%emt 0:00:03]} 19. Bd3 {[%emt 0:04:12]} Rfc8 {[%emt 0:01:39]} 20. g3 {[%emt 0:02:18]} Kf7 {[%emt 0:06:49]} 21. h4 {[%emt 0:00:58]} Kf6 {[%emt 0:00:54]} 22. Kg2 {[%emt 0:00:08]} h6 {[%emt 0:00:10]} 23. Rxc8 {[%emt 0:01:11]} Rxc8 {[%emt 0:00:08]} 24. Rc1 {[%emt 0:00:20]} g5 {[%emt 0:02:52]} 25. Ba6 {[%emt 0:03:05]} Rb8 {[%emt 0:00:37]} 26. Rc3 {[%emt 0:06:02]} f4 {[%emt 0:03:35]} 27. gxf4 {[%emt 0:04:29]} gxf4 {[%emt 0:00:20]} 28. Nc1 {[%emt 0:01:06]} fxe3 {[%emt 0:05:15]} 29. fxe3 {[%emt 0:00:06]} Kf7 {[%emt 0:00:20]} 30. Nd3 {[%emt 0:03:32]} Nc5 {[%emt 0:00:55]} 31. dxc5 {[%emt 0:01:18]} Bxc3 {[%emt 0:04:37]} 32. c6 {[%emt 0:00:51]} Bxc6 {[%emt 0:00:18]} 33. bxc3 {[%emt 0:00:14]} Bb7 {[%emt 0:00:17]} 34. Bxb7 {[%emt 0:02:17]} Rxb7 {[%emt 0:00:02]} 35. Nf4 {[%emt 0:01:00]} Rc7 {[%emt 0:00:12]} 36. Nxd5 {[%emt 0:00:27]} Rc5 {[%emt 0:00:16]} 37. e4 {[%emt 0:01:24]} Ra5 {[%emt 0:00:03]} 38. Nd4 {[%emt 0:00:40]} Rxa3 {[%emt 0:00:14]} 39. Kf3 {[%emt 0:00:48]} a5 {[%emt 0:00:43]} 40. Nb5 {[%emt 0:00:37]} Ra1 {[%emt 0:01:24]} 41. Nxd6+ {[%emt 0:00:20]} Ke6 {[%emt 0:00:15]} 42. Nc4 {[%emt 0:00:51]} a4 {[%emt 0:00:52]} 43. Nc7+ {[%emt 0:06:37]} Kd7 {[%emt 0:01:13]} 44. Nb5 {[%emt 0:00:07]} Kc6 {[%emt 0:00:46]} 45. Nca3 {[%emt 0:00:59]} h5 {[%emt 0:00:29]} 46. Kf4 {[%emt 0:00:28]} Rg1 {[%emt 0:00:25]} 47. Ke5 {[%emt 0:02:58]} Rg4 {[%emt 0:00:41]} 48. Nd4+ {[%emt 0:00:08]} Kc5 {[%emt 0:00:15]} 49. Ne6+ {[%emt 0:00:24]} Kc6 {[%emt 0:00:04]} 50. Nd4+ {[%emt 0:00:08]} Kc5 {[%emt 0:00:05]} 51. Ne6+ {[%emt 0:00:06]} Kc6 {[%emt 0:00:08]} 52. Nd4+ 1/2-1/2

[Event "Cellavision Cup 2019"]
[Site "Lund"]
[Date "2019.08.03"]
[Round "5.10"]
[White "Lindberg, Bengt"]
[Black "Olsson, Simon"]
[Result "1-0"]
[ECO "B33"]
[WhiteElo "2384"]
[BlackElo "2176"]
[Annotator "NA"]
[PlyCount "89"]
[EventDate "2019.08.02"]
[EventType "swiss"]
[EventCountry "SWE"]
[SourceTitle "playchess.com"]
[Source "ChessBase"]
[SourceQuality "1"]
[TimeControl "5400+30"]

1. e4 {[%emt 0:02:54]} c5 {[%emt 0:00:00]} 2. Nf3 {[%emt 0:00:14]} Nc6 {[%emt 0:00:00]} 3. d4 {[%emt 0:00:19]} cxd4 {[%emt 0:00:00]} 4. Nxd4 {[%emt 0:00:08]} Nf6 {[%emt 0:00:00]} 5. Nc3 {[%emt 0:00:11]} e6 {[%emt 0:00:00]} 6. Ndb5 {[%emt 0:01:41]} Bc5 {[%emt 0:00:31]} 7. Bf4 {[%emt 0:00:56]} O-O {[%emt 0:00:23]} 8. Bd6 {[%emt 0:02:32]} Qb6 {[%emt 0:08:18]} 9. Bxc5 {[%emt 0:02:07]} Qxc5 {[%emt 0:00:08]} 10. Qd6 {[%emt 0:00:39]} Qb6 {[%emt 0:03:09]} 11. Qc7 {[%emt 0:25:48]} Qc5 {[%emt 0:04:30]} 12. Qd6 {[%emt 0:21:28]} Qb6 {[%emt 0:01:21]} 13. Rb1 {[%emt 0:06:08]} Ne8 {[%emt 0:08:12]} 14. Qd2 {[%emt 0:00:56]} f5 {[%emt 0:02:04]} 15. Bd3 {[%emt 0:01:26]} a6 {[%emt 0:01:13]} 16. Na3 {[%emt 0:00:31]} fxe4 {[%emt 0:02:39]} 17. Nxe4 {[%emt 0:00:15]} d5 {[%emt 0:00:13]} 18. Ng5 {[%emt 0:03:33]} h6 {[%emt 0:02:01]} 19. Nf3 {[%emt 0:02:11]} e5 {[%emt 0:00:54]} 20. Be2 {[%emt 0:00:34]} Nf6 {[%emt 0:06:26]} 21. O-O {[%emt 0:01:30]} Be6 {[%emt 0:02:17]} 22. c3 {[%emt 0:00:34]} Ne4 {[%emt 0:03:57]} 23. Qe1 {[%emt 0:00:43]} Rf4 {[%emt 0:05:31]} 24. b4 {[%emt 0:03:54]} Raf8 {[%emt 0:06:58]} 25. b5 {[%emt 0:00:07]} axb5 {[%emt 0:00:08]} 26. Rxb5 {[%emt 0:00:05]} Qa7 {[%emt 0:00:41]} 27. Nc2 {[%emt 0:00:43]} Qxa2 {[%emt 0:05:09]} 28. Nb4 {[%emt 0:10:32]} Qa7 {[%emt 0:06:14]} 29. Nxd5 {[%emt 0:01:22]} Bxd5 {[%emt 0:01:44]} 30. Rxd5 {[%emt 0:00:03]} Nxf2 {[%emt 0:05:30]} 31. Qxf2 {[%emt 0:04:17]} Qxf2+ {[%emt 0:00:23]} 32. Rxf2 {[%emt 0:00:47]} e4 {[%emt 0:00:07]} 33. Rb5 {[%emt 0:01:20]} Nd8 {[%emt 0:02:16]} 34. Rf1 {[%emt 0:02:17]} exf3 {[%emt 0:00:47]} 35. Bxf3 {[%emt 0:00:44]} Kh8 {[%emt 0:00:17]} 36. Rc1 {[%emt 0:00:35]} R4f7 {[%emt 0:01:09]} 37. Rb6 {[%emt 0:01:12]} Rc7 {[%emt 0:01:15]} 38. c4 {[%emt 0:00:12]} Nc6 {[%emt 0:01:07]} 39. Bd5 {[%emt 0:00:07]} Nd8 {[%emt 0:14:47]} 40. Rf1 {[%emt 0:00:59]} Re8 {[%emt 0:02:10]} 41. h4 {[%emt 0:00:37]} Rce7 {[%emt 0:01:48]} 42. Rf4 {[%emt 0:00:29]} Kh7 {[%emt 0:01:57]} 43. Kh2 {[%emt 0:00:15]} Rc7 {[%emt 0:01:32]} 44. Kh3 {[%emt 0:00:24]} Nc6 {[%emt 0:00:59]} 45. h5 {[%emt 0:00:48]} 1-0

[Event "Cellavision Cup 2019"]
[Site "Lund"]
[Date "2019.08.03"]
[Round "5.11"]
[White "Fransson, Patrick"]
[Black "Rostgaard, Tobias Valentin"]
[Result "1/2-1/2"]
[ECO "D00"]
[WhiteElo "2113"]
[BlackElo "2390"]
[Annotator "NA"]
[PlyCount "73"]
[EventDate "2019.08.02"]
[EventType "swiss"]
[EventCountry "SWE"]
[SourceTitle "playchess.com"]
[Source "ChessBase"]
[SourceQuality "1"]
[TimeControl "5400+30"]

1. d4 {[%emt 0:00:00]} d5 {[%emt 0:00:00]} 2. Bg5 {[%emt 0:00:00]} h6 {[%emt 0:01:28]} 3. Bh4 {[%emt 0:00:28]} Bf5 {[%emt 0:00:22]} 4. e3 {[%emt 0:01:54]} c6 {[%emt 0:04:32]} 5. Bd3 {[%emt 0:01:06]} Bxd3 {[%emt 0:00:51]} 6. Qxd3 {[%emt 0:00:03]} Qb6 {[%emt 0:00:22]} 7. Nd2 {[%emt 0:04:47]} Nd7 {[%emt 0:00:52]} 8. Ngf3 {[%emt 0:00:48]} e6 {[%emt 0:00:23]} 9. O-O {[%emt 0:00:38]} Ngf6 {[%emt 0:04:09]} 10. c4 {[%emt 0:00:20]} Qa6 {[%emt 0:06:28]} 11. a3 {[%emt 0:11:18]} Be7 {[%emt 0:01:46]} 12. b4 {[%emt 0:03:00]} O-O {[%emt 0:01:09]} 13. Qb3 {[%emt 0:04:19]} b5 {[%emt 0:08:59]} 14. c5 {[%emt 0:01:20]} Qb7 {[%emt 0:00:56]} 15. a4 {[%emt 0:03:55]} a6 {[%emt 0:00:13]} 16. Ra3 {[%emt 0:03:47]} g5 {[%emt 0:00:42]} 17. Bg3 {[%emt 0:00:45]} Nh5 {[%emt 0:00:04]} 18. Rfa1 {[%emt 0:05:47]} Nxg3 {[%emt 0:00:13]} 19. hxg3 {[%emt 0:00:08]} Ra7 {[%emt 0:11:12]} 20. Qd3 {[%emt 0:02:46]} Rfa8 {[%emt 0:00:54]} 21. Ne5 {[%emt 0:01:54]} Nxe5 {[%emt 0:01:08]} 22. dxe5 {[%emt 0:00:02]} Qb8 {[%emt 0:12:12]} 23. f4 {[%emt 0:04:06]} bxa4 {[%emt 0:05:09]} 24. Rxa4 {[%emt 0:02:23]} a5 {[%emt 0:00:27]} 25. bxa5 {[%emt 0:03:30]} Bxc5 {[%emt 0:02:27]} 26. Nf1 {[%emt 0:08:06]} Qb5 {[%emt 0:05:30]} 27. Qd1 {[%emt 0:03:00]} Rxa5 {[%emt 0:03:49]} 28. Rxa5 {[%emt 0:00:57]} Rxa5 {[%emt 0:00:10]} 29. Rb1 {[%emt 0:00:23]} Bb4 {[%emt 0:01:01]} 30. Qh5 {[%emt 0:01:20]} gxf4 {[%emt 0:02:08]} 31. Qxh6 {[%emt 0:00:56]} c5 {[%emt 0:11:47]} 32. Qg5+ {[%emt 0:04:22]} Kf8 {[%emt 0:00:28]} 33. Rxb4 {[%emt 0:01:12]} cxb4 {[%emt 0:01:23]} 34. Qd8+ {[%emt 0:00:09]} Kg7 {[%emt 0:00:38]} 35. Qg5+ {[%emt 0:00:06]} Kf8 {[%emt 0:00:05]} 36. Qd8+ {[%emt 0:00:04]} Kg7 {[%emt 0:00:06]} 37. Qg5+ 1/2-1/2

[Event "Cellavision Cup 2019"]
[Site "Lund"]
[Date "2019.08.03"]
[Round "5.12"]
[White "Schneider, Stefan"]
[Black "Mansson, Peter"]
[Result "1-0"]
[ECO "A61"]
[WhiteElo "2379"]
[BlackElo "2165"]
[Annotator "NA"]
[PlyCount "92"]
[EventDate "2019.08.02"]
[EventType "swiss"]
[EventCountry "SWE"]
[SourceTitle "playchess.com"]
[Source "ChessBase"]
[SourceQuality "1"]
[TimeControl "5400+30"]

1. d4 {[%emt 0:00:00]} Nf6 {[%emt 0:01:22]} 2. Nf3 {[%emt 0:00:00]} c5 {[%emt 0:00:28]} 3. d5 {[%emt 0:00:11]} e6 {[%emt 0:00:19]} 4. c4 {[%emt 0:01:31]} exd5 {[%emt 0:00:45]} 5. cxd5 {[%emt 0:00:02]} g6 {[%emt 0:00:14]} 6. Nc3 {[%emt 0:00:04]} d6 {[%emt 0:00:10]} 7. Bf4 {[%emt 0:00:28]} Bg7 {[%emt 0:00:42]} 8. h3 {[%emt 0:00:08]} O-O {[%emt 0:01:05]} 9. e3 {[%emt 0:00:03]} b6 {[%emt 0:10:24]} 10. Be2 {[%emt 0:07:53]} Ba6 {[%emt 0:04:27]} 11. O-O {[%emt 0:01:01]} Bxe2 {[%emt 0:00:45]} 12. Qxe2 {[%emt 0:00:05]} a6 {[%emt 0:01:14]} 13. a4 {[%emt 0:03:24]} Qe7 {[%emt 0:03:05]} 14. Nd2 {[%emt 0:03:29]} Nbd7 {[%emt 0:10:33]} 15. Nc4 {[%emt 0:07:52]} Ne8 {[%emt 0:00:16]} 16. Bh2 {[%emt 0:00:26]} f5 {[%emt 0:07:03]} 17. Kh1 {[%emt 0:09:39]} Rf6 {[%emt 0:04:19]} 18. Rfe1 {[%emt 0:18:53]} g5 {[%emt 0:18:02]} 19. f4 {[%emt 0:14:41]} Rg6 {[%emt 0:13:08]} 20. e4 {[%emt 0:12:31]} Bxc3 {[%emt 0:03:41]} 21. exf5 {[%emt 0:00:42]} Qxe2 {[%emt 0:00:16]} 22. Rxe2 {[%emt 0:00:05]} Rf6 {[%emt 0:03:10]} 23. bxc3 {[%emt 0:08:12]} Rxf5 {[%emt 0:06:26]} 24. Ne3 {[%emt 0:00:04]} Rf7 {[%emt 0:01:35]} 25. Ng4 {[%emt 0:03:18]} Rg7 {[%emt 0:05:42]} 26. Nh6+ {[%emt 0:01:24]} Kf8 {[%emt 0:00:12]} 27. Rf1 {[%emt 0:02:58]} g4 {[%emt 0:00:09]} 28. hxg4 {[%emt 0:01:26]} Ndf6 {[%emt 0:00:42]} 29. c4 {[%emt 0:01:08]} Nxg4 {[%emt 0:00:52]} 30. Nxg4 {[%emt 0:00:10]} Rxg4 {[%emt 0:00:05]} 31. Rb1 {[%emt 0:00:28]} Ng7 {[%emt 0:01:22]} 32. Rxb6 {[%emt 0:01:17]} Nf5 {[%emt 0:00:05]} 33. Kg1 {[%emt 0:01:12]} Re8 {[%emt 0:03:14]} 34. Rxe8+ {[%emt 0:01:01]} Kxe8 {[%emt 0:00:01]} 35. Rxa6 {[%emt 0:00:08]} Ne3 {[%emt 0:00:13]} 36. g3 {[%emt 0:00:32]} Nxc4 {[%emt 0:00:09]} 37. a5 {[%emt 0:00:40]} Kf7 {[%emt 0:01:11]} 38. Ra8 {[%emt 0:00:37]} Kf6 {[%emt 0:00:12]} 39. Kf2 {[%emt 0:01:08]} Rg7 {[%emt 0:00:30]} 40. a6 {[%emt 0:00:27]} Nb6 {[%emt 0:00:49]} 41. Rf8+ {[%emt 0:00:18]} Ke7 {[%emt 0:00:10]} 42. Rb8 {[%emt 0:00:22]} Nxd5 {[%emt 0:01:00]} 43. a7 {[%emt 0:00:15]} Nc7 {[%emt 0:00:22]} 44. Rb7 {[%emt 0:00:30]} Rg8 {[%emt 0:00:56]} 45. Rxc7+ {[%emt 0:00:06]} Ke6 {[%emt 0:00:25]} 46. Ke3 {[%emt 0:00:33]} Kd5 {Ke4+} 1-0

[Event "Cellavision Cup 2019"]
[Site "Lund"]
[Date "2019.08.03"]
[Round "5.13"]
[White "Hakansson, Stefan"]
[Black "Malmstig, Erik"]
[Result "0-1"]
[ECO "A45"]
[WhiteElo "2059"]
[BlackElo "2357"]
[Annotator "NA"]
[PlyCount "98"]
[EventDate "2019.08.02"]
[EventType "swiss"]
[EventCountry "SWE"]
[SourceTitle "playchess.com"]
[Source "ChessBase"]
[SourceQuality "1"]
[TimeControl "5400+30"]

1. d4 {[%emt 0:00:00]} Nf6 {[%emt 0:00:00]} 2. Bf4 {[%emt 0:01:03]} e6 {[%emt 0:00:54]} 3. e3 {[%emt 0:00:48]} b6 {[%emt 0:00:53]} 4. Nf3 {[%emt 0:06:57]} Bb7 {[%emt 0:02:09]} 5. h3 {[%emt 0:04:23]} d6 {[%emt 0:01:11]} 6. Nbd2 {[%emt 0:01:25]} Nbd7 {[%emt 0:02:03]} 7. c3 {[%emt 0:11:31]} Qe7 {[%emt 0:04:01]} 8. Bh2 {[%emt 0:02:41]} g6 {[%emt 0:02:36]} 9. Be2 {[%emt 0:02:57]} Bg7 {[%emt 0:01:20]} 10. O-O {[%emt 0:00:45]} O-O {[%emt 0:05:46]} 11. Ne1 {[%emt 0:04:51]} e5 {[%emt 0:02:04]} 12. a4 {[%emt 0:05:26]} a5 {[%emt 0:06:12]} 13. Bf3 {[%emt 0:04:21]} e4 {[%emt 0:01:56]} 14. Be2 {[%emt 0:00:02]} Nd5 {[%emt 0:01:20]} 15. Qb3 {[%emt 0:09:54]} Rae8 {[%emt 0:11:51]} 16. Nc2 {[%emt 0:02:29]} Kh8 {[%emt 0:02:08]} 17. Rfe1 {[%emt 0:08:04]} f5 {[%emt 0:01:05]} 18. Bf1 {[%emt 0:11:34]} N5f6 {[%emt 0:02:00]} 19. Na3 {[%emt 0:01:18]} Nh5 {[%emt 0:01:50]} 20. Nb5 {[%emt 0:03:35]} Ndf6 {[%emt 0:04:13]} 21. c4 {[%emt 0:04:59]} Rc8 {[%emt 0:06:30]} 22. Rac1 {[%emt 0:01:32]} Rfd8 {[%emt 0:01:43]} 23. Na7 {[%emt 0:02:01]} Ra8 {[%emt 0:03:33]} 24. Nb5 {[%emt 0:00:07]} Ne8 {[%emt 0:04:39]} 25. Be2 {[%emt 0:01:56]} Nhf6 {[%emt 0:02:49]} 26. Nc3 {[%emt 0:02:22]} Bh6 {[%emt 0:01:55]} 27. Nf1 {[%emt 0:00:31]} Rab8 {[%emt 0:01:25]} 28. Nb5 {[%emt 0:01:25]} Qf7 {[%emt 0:01:07]} 29. d5 {[%emt 0:01:19]} Nd7 {[%emt 0:01:33]} 30. Nd4 {[%emt 0:00:21]} Nc5 {[%emt 0:00:31]} 31. Qc2 {[%emt 0:00:24]} Nf6 {[%emt 0:02:23]} 32. Nd2 {[%emt 0:01:26]} Qe8 {[%emt 0:01:50]} 33. b3 {[%emt 0:01:02]} Bg7 {[%emt 0:01:40]} 34. Nb1 {[%emt 0:00:36]} Nfd7 {[%emt 0:01:04]} 35. Rcd1 {[%emt 0:01:09]} Qe7 {[%emt 0:02:08]} 36. f4 {[%emt 0:01:07]} exf3 {[%emt 0:01:58]} 37. Bxf3 {[%emt 0:00:01]} Re8 {[%emt 0:01:08]} 38. Nc3 {[%emt 0:00:45]} Ne5 {[%emt 0:01:00]} 39. Be2 {[%emt 0:00:23]} Nf7 {[%emt 0:00:59]} 40. Bf1 {[%emt 0:00:17]} Qg5 {[%emt 0:03:25]} 41. Bf4 {[%emt 0:00:05]} Qf6 {[%emt 0:00:17]} 42. Ncb5 {[%emt 0:00:23]} Re7 {[%emt 0:00:56]} 43. Re2 {[%emt 0:01:16]} Rbe8 {[%emt 0:00:14]} 44. Rde1 {[%emt 0:00:11]} Ng5 {[%emt 0:02:18]} 45. Nf3 {[%emt 0:01:50]} Nge4 {[%emt 0:00:32]} 46. Nbd4 {[%emt 0:00:07]} g5 {[%emt 0:00:23]} 47. Bh2 {[%emt 0:00:01]} g4 {[%emt 0:00:42]} 48. hxg4 {[%emt 0:00:05]} fxg4 {[%emt 0:00:06]} 49. Nd2 {[%emt 0:00:11]} g3 {[%emt 0:00:14]} 0-1